bitfinex/quotes_ETHUSD_20250106
["timestamp","ask_amount","ask_price","bid_price","bid_amount"]
[1736168586479,2.74242,3646.5,3646.1,1.14168058]
[1736168586681,2.74258,3646.2,3646.1,1.14168058]
[1736168586882,5.38878142,3646.2,3646.1,1.14168058]
[1736168587178,6.27807856,3646.2,3646.0,1.71294019]
[1736168587387,2.74273,3646.0,3645.7,35.0]
[1736168588541,3.53549856,3646.2,3645.7,35.0]
[1736168588739,2.74287,3645.9,3645.7,35.0]
[1736168590746,3.88552262,3646.1,3645.7,35.0]
[1736168591036,2.74273,3646.0,3645.7,35.0]
[1736168592085,3.88544262,3646.2,3645.7,35.0]
[1736168593441,1.71426393,3646.3,3645.8,0.7818]
[1736168593442,1.14284262,3646.3,3645.8,0.7818]
[1736168594692,2.74259,3646.2,3645.8,0.7818]
[1736168595687,2.74259,3646.2,3645.7,35.0]
[1736168595688,2.74271,3646.1,3645.7,35.0]
[1736168596136,0.46149813,3646.3,3645.7,35.0]
[1736168596340,2.74275,3646.0,3645.7,35.0]
[1736168598792,2.74275,3646.0,3645.4,0.8319]
[1736168599394,2.74275,3646.0,3645.5,35.0]
[1736168600729,0.7948,3646.1,3645.5,35.0]
[1736168601624,2.7426,3646.2,3645.5,35.0]
[1736168602068,1.96484262,3646.4,3645.5,35.0]
[1736168602368,2.74273,3646.0,3645.5,35.0]
[1736168602930,2.74261,3646.2,3645.5,35.0]
[1736168603333,2.74274,3646.0,3645.5,35.0]
[1736168605268,2.74259,3646.2,3645.5,35.0]
[1736168606577,1.14284262,3646.3,3645.5,35.0]
[1736168606782,1.14284262,3646.3,3645.6,0.7822]
[1736168607167,2.7425,3646.3,3645.6,0.7822]
[1736168608135,1.14284262,3646.4,3645.6,0.7822]
[1736168608261,2.74259,3646.2,3645.6,0.7822]
[1736168610489,2.74259,3646.2,3645.7,35.0]
[1736168620691,1.14284262,3646.4,3645.8,0.8001]
[1736168620891,1.14284262,3646.4,3646.1,0.55]
[1736168621139,1.14284262,3646.4,3646.3,0.55]
[1736168621334,1.14284262,3646.4,3646.3,7.1001]
[1736168621509,1.14284262,3646.4,3646.3,42.1001]
[1736168622539,2.36928336,3647.4,3646.5,0.55]
[1736168622847,2.74175,3647.3,3646.5,0.55]
[1736168623624,2.74175,3647.3,3646.5,3.55]
[1736168625864,1.14284262,3647.6,3646.5,0.55]
[1736168626022,2.74168,3647.4,3646.5,0.55]
[1736168626218,2.74168,3647.4,3646.7,3.0]
[1736168626625,2.74168,3647.4,3646.5,3.55]
[1736168627147,2.74168,3647.4,3646.7,3.0]
[1736168627660,2.74177,3647.3,3646.5,0.55]
[1736168628026,2.74177,3647.3,3646.7,3.0]
[1736168628517,2.74177,3647.3,3646.4,0.8254]
[1736168628518,2.74192,3647.1,3646.4,0.8254]
[1736168628718,3.43150142,3647.1,3646.2,0.7833]
[1736168628959,2.74219,3646.8,3646.3,35.0]
[1736168629121,3.43150142,3647.1,3646.2,0.7833]
[1736168629322,2.74228,3646.7,3646.2,0.7833]
[1736168629519,2.64620142,3646.8,3646.2,0.7833]
[1736168629760,2.7423,3646.6,3646.3,35.0]
[1736168630824,2.74243,3646.4,3646.3,35.0]
[1736168631323,2.74262,3646.2,3645.7,0.7925]
[1736168631774,2.74243,3646.4,3645.8,35.0]
[1736168632145,3.46040142,3646.5,3645.8,35.0]
[1736168632351,2.74252,3646.3,3645.8,35.0]
[1736168634984,3.55655,3646.5,3645.8,35.0]
[1736168636648,2.74245,3646.4,3645.8,35.0]
[1736168637568,2.74258,3646.2,3645.8,35.0]
[1736168637783,0.61897306,3646.4,3645.8,35.0]
[1736168637955,2.7428,3645.9,3645.8,35.0]
[1736168639065,5.38885142,3646.2,3645.8,35.0]
[1736168639267,2.74274,3646.0,3645.8,35.0]
[1736168641104,2.74274,3646.0,3645.4,0.7831]
[1736168641800,2.74274,3646.0,3645.5,35.0]
[1736168647727,2.74274,3646.0,3644.9,4.14168058]
[1736168647728,1.14284262,3646.5,3645.7,0.55]
[1736168647870,1.14284262,3646.5,3646.0,0.55]
[1736168648067,3.88526262,3646.5,3645.9,0.7612]
[1736168648299,2.19612943,3646.5,3646.1,35.0]
[1736168648503,2.74245,3646.4,3646.1,35.0]
[1736168649916,3.43530142,3646.6,3646.1,35.0]
[1736168650098,6.17761142,3646.6,3645.4,0.7863]
[1736168650415,2.64620142,3646.3,3645.4,0.7863]
[1736168650615,2.7427,3646.1,3645.5,35.0]
[1736168651119,2.64620142,3646.3,3645.5,35.0]
[1736168651410,2.74265,3646.1,3645.5,35.0]
[1736168651572,2.74273,3646.0,3645.5,35.0]
[1736168652370,0.7523,3646.0,3645.5,35.0]
[1736168652585,2.7428,3645.9,3645.1,3.0]
[1736168652918,3.73835156,3646.0,3645.1,3.0]
[1736168653211,3.73835156,3646.0,3645.2,35.0]
[1736168653395,2.74291,3645.8,3645.2,35.0]
[1736168653601,3.49505,3646.0,3645.2,35.0]
[1736168654795,2.74292,3645.8,3645.2,35.0]
[1736168655189,3.61206,3646.0,3645.2,35.0]
[1736168657724,2.85976,3646.0,3645.2,35.0]
[1736168658119,0.117,3646.0,3645.2,35.0]
[1736168658322,2.74292,3645.8,3645.2,35.0]
[1736168658806,2.76320142,3646.0,3645.2,35.0]
[1736168659013,2.74294,3645.8,3645.2,35.0]
[1736168659214,2.74321,3645.4,3645.2,35.0]
[1736168660419,3.52835,3645.6,3645.2,35.0]
[1736168660599,2.74305,3645.6,3645.2,35.0]
[1736168662306,2.74313,3645.5,3645.0,0.7863]
[1736168662823,2.74313,3645.5,3645.1,35.0]
[1736168664631,2.74298,3645.7,3645.1,35.0]
[1736168665050,2.74268,3646.1,3645.1,35.0]
[1736168665250,1.25984262,3646.2,3645.4,0.7885]
[1736168665802,1.25984262,3646.2,3645.6,35.0]
[1736168666449,4.00245262,3646.2,3645.6,35.0]
[1736168666741,2.85961,3646.2,3645.6,35.0]
[1736168666950,0.117,3646.2,3645.7,0.7855]
[1736168668406,0.11369749,3646.2,3645.7,0.7855]
[1736168669505,0.11369749,3646.2,3645.7,0.76672598]
[1736168671464,2.74277,3646.0,3645.1,1.14168058]
[1736168671605,2.74283,3645.9,3645.1,1.14168058]
[1736168671800,2.7428,3645.9,3645.1,1.14168058]
[1736168672209,2.74288,3645.8,3645.0,1.14168058]
[1736168672405,2.7428,3645.9,3645.0,1.14168058]
[1736168672715,0.62069014,3645.8,3645.0,1.14168058]
[1736168673054,2.74306,3645.6,3645.0,1.14168058]
[1736168673770,2.74306,3645.6,3644.9,0.7593]
[1736168679350,2.74336,3645.2,3644.7,1.14168058]
[1736168679855,2.74336,3645.2,3644.7,4.14168058]
[1736168680023,2.64620142,3645.4,3644.7,4.14168058]
[1736168680225,2.74317,3645.5,3644.7,4.14168058]
[1736168680468,2.74323,3645.4,3644.7,4.14168058]
[1736168681333,2.74323,3645.4,3644.6,3.7574]
[1736168681334,3.69059439,3645.4,3644.6,3.7574]
[1736168681538,3.69059439,3645.4,3644.6,0.7574]
[1736168681781,0.94736439,3645.4,3644.6,3.50115]
[1736168682072,0.94736439,3645.4,3644.7,0.8115]
[1736168682281,0.94736439,3645.4,3644.8,0.8115]
[1736168682585,0.94736439,3645.4,3644.3,4.14168058]
[1736168682586,0.94736439,3645.4,3645.0,0.8151]
[1736168682870,0.94736439,3645.7,3645.2,0.8151]
[1736168683859,2.7428,3645.9,3645.2,0.8151]
[1736168684262,4.83287701,3646.1,3645.2,0.8151]
[1736168685167,1.14284262,3646.1,3645.4,0.8123]
[1736168686138,0.117,3646.2,3645.4,0.8123]
[1736168686139,2.74281,3645.9,3645.4,0.8123]
[1736168687477,0.75762055,3646.1,3645.4,0.8123]
[1736168687642,2.74305,3645.6,3645.4,0.8123]
[1736168688268,2.74318,3645.4,3645.1,1.42673238]
[1736168688872,3.5201,3645.9,3645.1,1.42673238]
[1736168689142,3.5201,3645.9,3644.9,1.93598058]
[1736168689143,2.74306,3645.6,3644.9,0.7943]
[1736168695903,2.74306,3645.6,3645.0,35.0]
[1736168696473,2.7429,3645.8,3645.1,0.7986]
[1736168696696,1.14284262,3645.9,3645.1,0.7986]
[1736168696998,1.14284262,3645.9,3645.2,0.55]
[1736168697296,1.14284262,3645.9,3645.2,38.55]
[1736168697883,2.74274,3646.0,3645.2,39.50126878]
[1736168699303,2.74274,3646.0,3645.3,0.95126878]
[1736168699663,2.743,3645.7,3645.3,0.95126878]
[1736168699886,2.743,3645.7,3645.4,35.0]
[1736168700058,0.9154248,3646.0,3645.3,0.95126878]
[1736168700596,2.74324,3645.4,3645.2,1.42714794]
[1736168702099,2.74324,3645.4,3645.1,35.0]
[1736168702607,2.74319,3645.4,3645.1,35.0]
[1736168703004,2.74319,3645.4,3644.5,1.93378058]
[1736168703005,2.64620142,3645.4,3644.5,1.93378058]
[1736168703213,5.38942142,3645.4,3644.5,1.93378058]
[1736168703503,2.74356,3644.9,3644.6,35.0]
[1736168703815,0.8113,3645.2,3644.6,35.0]
[1736168703966,2.74371,3644.7,3644.6,35.0]
[1736168704769,3.55466,3645.2,3644.0,1.14168058]
[1736168704770,2.64620142,3644.8,3644.0,1.14168058]
[1736168705068,2.74397,3644.4,3644.0,1.14168058]
[1736168705271,2.74397,3644.4,3644.0,36.14168058]
[1736168705683,3.5513,3644.6,3644.0,36.14168058]
[1736168706368,2.74392,3644.5,3644.0,35.0]
[1736168706813,2.74395,3644.4,3644.0,35.0]
[1736168708602,0.8075,3644.6,3644.0,35.0]
[1736168708908,3.55135,3644.6,3644.0,35.0]
[1736168709108,2.74364,3644.8,3644.1,0.7594]
[1736168709292,0.8075,3644.9,3644.1,0.7594]
[1736168709478,1.18576066,3644.9,3644.1,0.7594]
[1736168709686,3.92934066,3644.9,3644.1,0.7594]
[1736168710013,2.74365,3644.8,3644.1,0.7594]
[1736168710380,2.74372,3644.7,3644.1,0.7594]
[1736168711705,0.8075,3644.9,3644.1,0.7594]
[1736168711906,2.7438,3644.6,3644.1,0.7594]
[1736168712412,2.64620142,3644.7,3643.6,0.8111]
[1736168712577,2.74401,3644.3,3643.7,35.0]
[1736168713405,1.07072014,3644.6,3643.7,35.0]
[1736168714111,2.74399,3644.4,3643.7,35.0]
[1736168714315,2.74409,3644.2,3643.7,35.0]
[1736168714531,3.54568,3643.8,3643.7,35.0]
[1736168714688,2.7447,3643.4,3643.1,1.14168058]
[1736168714880,2.74456,3643.6,3643.1,1.14168058]
[1736168715074,2.74456,3643.6,3643.2,35.0]
[1736168715699,2.86247,3643.7,3643.2,35.0]
[1736168715875,0.118,3643.7,3643.3,0.7667]
[1736168717324,2.74425,3644.0,3643.3,0.7667]
[1736168717484,0.118,3644.0,3643.3,0.7667]
[1736168717818,1.26084262,3644.3,3643.5,0.7667]
[1736168717978,1.14284262,3644.3,3643.8,35.0]
[1736168718183,2.86194,3644.4,3643.8,35.0]
[1736168718414,0.118,3644.4,3643.8,35.0]
[1736168718714,2.74423,3644.1,3643.8,35.0]
[1736168719081,0.118,3644.3,3643.8,35.0]
[1736168719306,0.118,3644.3,3643.9,0.8269]
[1736168719526,2.86201,3644.3,3643.9,0.8269]
[1736168721699,0.118,3644.3,3643.9,0.8269]
[1736168722197,2.74387,3644.5,3643.9,0.8269]
[1736168722503,0.118,3644.7,3643.9,0.8269]
[1736168722703,0.118,3644.9,3644.1,0.8034]
[1736168723003,2.74371,3644.7,3644.1,0.8034]
[1736168723830,0.118,3644.9,3644.1,0.8034]
[1736168724028,0.286171,3644.7,3644.1,0.8034]
[1736168724247,2.744,3644.4,3644.1,0.8034]
[1736168724600,0.7644,3644.5,3644.0,35.0]
[1736168724807,2.74393,3644.4,3643.5,0.8015]
[1736168725008,3.38800024,3644.4,3643.5,0.8015]
[1736168725202,2.74401,3644.3,3643.5,0.8015]
[1736168725431,2.74425,3644.0,3643.5,35.8015]
[1736168727547,2.74401,3644.3,3643.5,35.8015]
[1736168727839,2.74423,3644.0,3643.5,35.8015]
[1736168728472,2.74423,3644.0,3643.5,0.8015]
[1736168728821,0.7644,3644.5,3643.6,35.0]
[1736168729028,2.74407,3644.3,3643.6,35.0]
[1736168729628,2.74409,3644.2,3643.6,35.0]
[1736168732058,0.7644,3644.5,3643.6,35.0]
[1736168732279,2.81091359,3644.1,3643.6,35.0]
[1736168732484,2.74416,3644.1,3643.6,35.0]
[1736168733430,2.74437,3643.9,3643.6,35.0]
[1736168733667,0.7857,3643.9,3643.6,35.0]
[1736168733832,2.74443,3643.8,3643.6,35.0]
[1736168734163,0.06603224,3643.7,3643.6,35.0]
[1736168734774,2.81049224,3643.7,3643.6,35.0]
[1736168734972,2.74465,3643.5,3643.0,0.8106]
[1736168735270,0.119,3643.6,3643.0,0.8106]
[1736168735480,0.06603349,3643.4,3643.1,35.0]
[1736168735631,0.119,3643.6,3643.1,35.0]
[1736168735632,0.06607705,3643.5,3643.1,35.0]
[1736168736007,0.0659905,3643.4,3643.1,35.0]
[1736168736344,0.119,3643.6,3643.1,35.0]
[1736168736557,0.06603406,3643.5,3643.1,35.0]
[1736168737363,2.81065406,3643.5,3643.1,35.0]
[1736168737748,0.06603406,3643.5,3643.1,35.0]
[1736168738062,2.74469,3643.4,3643.1,35.0]
[1736168738662,3.63105,3643.6,3643.1,35.0]
[1736168738976,0.06607705,3643.5,3643.1,35.0]
[1736168741345,2.81074705,3643.5,3643.1,35.0]
[1736168742180,0.43406175,3643.5,3643.1,35.0]
[1736168742387,0.06607705,3643.5,3643.1,35.0]
[1736168742590,0.8273,3643.2,3643.1,35.0]
[1736168742743,3.57213,3643.2,3643.1,35.0]
[1736168742944,3.63807636,3643.2,3643.1,35.0]
[1736168743882,3.57213,3643.2,3643.1,35.0]
[1736168744084,3.63796688,3643.2,3642.3,0.55]
[1736168744684,3.63796688,3643.2,3642.4,35.0]
[1736168744894,0.06583688,3643.2,3642.5,0.8001]
[1736168745102,0.7725,3643.5,3642.6,0.55]
[1736168745252,0.119,3643.5,3642.7,0.8001]
[1736168745453,0.06541808,3643.4,3642.8,35.0]
[1736168745893,0.119,3643.5,3642.8,35.0]
[1736168746261,0.06333076,3643.4,3642.8,35.0]
[1736168746860,0.119,3643.5,3642.8,35.0]
[1736168747375,0.0633874,3643.4,3642.8,35.0]
[1736168747798,0.119,3643.5,3642.8,35.0]
[1736168748214,2.80808118,3643.4,3642.8,35.0]
[1736168748364,2.74469,3643.4,3642.8,35.0]
[1736168748562,0.06334761,3643.3,3642.8,35.0]
[1736168749285,2.80813761,3643.3,3642.8,35.0]
[1736168749480,0.119,3643.5,3642.8,35.0]
[1736168749776,2.74499,3643.0,3642.8,35.0]
[1736168749973,0.06317332,3642.9,3642.5,3.7926]
[1736168750188,2.74522,3642.7,3642.2,0.827]
[1736168750368,2.74491,3643.1,3642.3,36.14168058]
[1736168750369,2.74529,3642.6,3642.3,36.14168058]
[1736168750790,2.99587242,3643.0,3642.3,35.0]
[1736168751215,2.74536,3642.6,3642.3,35.0]
[1736168751735,2.74536,3642.6,3642.0,4.90488058]
[1736168752091,0.06291979,3642.5,3642.1,35.0]
[1736168752599,2.74536,3642.6,3642.1,35.0]
[1736168759251,2.74521,3642.7,3642.1,35.0]
[1736168759742,0.06308851,3642.6,3642.1,35.0]
[1736168760146,2.80841851,3642.6,3642.1,35.0]
[1736168760446,2.74536,3642.5,3642.1,35.0]
[1736168760641,2.80810782,3642.5,3642.1,35.0]
[1736168760946,0.06274782,3642.5,3642.1,35.0]
[1736168761122,0.7945,3642.9,3642.1,35.0]
[1736168761320,2.74537,3642.5,3642.1,35.0]
[1736168761531,0.06265283,3642.4,3642.1,35.0]
[1736168761742,2.74535,3642.6,3642.1,35.0]
[1736168762131,0.06268054,3642.5,3642.1,35.0]
[1736168762617,0.7945,3642.9,3642.1,35.0]
[1736168762816,0.06263695,3642.4,3642.3,0.7756]
[1736168763047,0.118,3643.1,3642.4,0.7756]
[1736168763341,0.118,3643.1,3642.4,3.52104]
[1736168763646,0.06285374,3643.0,3642.5,35.0]
[1736168764930,2.74477,3643.3,3642.5,35.0]
[1736168765366,0.06301932,3643.2,3642.5,35.0]
[1736168765643,0.118,3643.4,3642.5,35.0]
[1736168765817,2.74452,3643.7,3642.7,3.0]
[1736168766021,1.14284262,3643.9,3643.1,0.7588]
[1736168766347,0.06339484,3643.5,3643.1,0.7588]
[1736168766524,0.06335883,3643.4,3643.2,35.0]
[1736168766723,0.06335883,3643.4,3643.3,0.7591]
[1736168766926,1.14284262,3643.9,3643.3,0.7591]
[1736168767122,2.74416,3644.1,3643.3,0.7591]
[1736168767727,0.06380139,3644.0,3643.3,0.7591]
[1736168768524,2.80804139,3644.0,3643.3,0.7591]
[1736168768731,2.74445,3643.8,3643.3,0.7591]
[1736168768932,2.74453,3643.6,3643.2,35.0]
[1736168769233,0.06380484,3643.5,3643.2,35.0]
[1736168769422,0.06380484,3643.5,3643.0,0.7815]
[1736168769852,0.06380484,3643.5,3643.1,35.0]
[1736168770054,0.8242,3643.4,3642.6,0.7815]
[1736168770368,2.74481,3643.3,3642.6,0.7815]
[1736168771063,0.06356544,3643.2,3642.6,0.7815]
[1736168771761,2.74458,3643.6,3642.6,0.7815]
[1736168771956,2.74473,3643.4,3642.6,0.7815]
[1736168772251,0.06353727,3643.3,3642.6,0.7815]
[1736168774330,0.06353727,3643.3,3642.5,0.02745027]
[1736168774530,0.06353727,3643.3,3642.6,0.7654]
[1736168775522,0.06353727,3643.3,3642.7,0.55]
[1736168775717,2.74462,3643.5,3642.6,0.7654]
[1736168775957,0.41830525,3643.4,3642.6,0.7654]
[1736168776158,0.06142325,3643.4,3642.6,0.7654]
[1736168776353,0.8242,3643.7,3642.6,0.7654]
[1736168776558,0.06149368,3643.6,3642.6,0.7654]
[1736168776764,2.74483,3643.3,3642.6,0.7654]
[1736168777061,0.06112655,3643.2,3642.7,0.55]
[1736168777480,2.74454,3643.6,3642.7,0.55]
[1736168777773,0.06116517,3643.5,3642.8,0.793]
[1736168777961,1.26084262,3643.8,3642.8,0.793]
[1736168777962,1.26084262,3643.8,3642.9,0.55]
[1736168778159,2.74454,3643.6,3642.9,0.55]
[1736168778337,0.06116517,3643.5,3642.9,0.55]
[1736168778744,0.06116517,3643.5,3642.8,0.793]
[1736168779039,3.5621,3643.7,3642.8,0.793]
[1736168779239,2.74484,3643.2,3642.5,1.97418058]
[1736168779773,0.36801,3643.6,3642.5,1.97418058]
[1736168779774,3.62376589,3643.1,3642.5,0.8325]
[1736168780380,0.06122589,3643.1,3642.7,0.7977]
[1736168780582,2.74469,3643.4,3642.7,0.7977]
[1736168780751,0.0613138,3643.3,3642.7,0.7977]
[1736168782283,2.74498,3643.1,3642.3,1.93558058]
[1736168782657,0.06117099,3643.0,3642.4,0.55]
[1736168782854,0.06117099,3643.0,3642.3,1.93558058]
[1736168783054,2.74543,3642.5,3642.3,1.14168058]
[1736168783265,2.74542,3642.5,3642.3,1.14168058]
[1736168783581,2.74542,3642.5,3642.1,1.9960818]
[1736168783582,0.06091406,3642.4,3642.1,0.28314161]
[1736168783781,2.80636406,3642.4,3642.1,0.28314161]
[1736168784086,0.06091406,3642.4,3642.1,0.28314161]
[1736168784245,2.74552,3642.3,3642.1,0.28314161]
[1736168784680,0.0607808,3642.2,3642.1,0.28314161]
[1736168785088,2.74539,3642.5,3642.1,0.28314161]
[1736168785280,0.06079668,3642.2,3642.1,0.28314161]
[1736168785591,0.0607808,3642.2,3642.1,0.83314161]
[1736168785768,2.74522,3642.7,3642.1,1.61964161]
[1736168785969,0.06097102,3642.6,3642.1,1.61964161]
[1736168786690,2.80626102,3642.6,3642.1,1.61964161]
[1736168787191,0.06097102,3642.6,3642.1,1.61964161]
[1736168787399,0.41875312,3642.6,3642.1,1.06964161]
[1736168787559,3.55759,3642.2,3642.1,0.28314161]
[1736168787919,3.6179486,3642.2,3642.1,0.28314161]
[1736168789174,10.13480497,3642.2,3641.7,4.32497588]
[1736168789378,6.21159142,3641.8,3641.7,5.88e-06]
[1736168789617,6.27143402,3641.8,3641.7,5.88e-06]
[1736168790289,9.78079039,3641.8,3641.7,5.88e-06]
[1736168790614,15.27269039,3641.8,3641.7,5.88e-06]
[1736168790911,17.67397575,3641.8,3641.7,5.88e-06]
[1736168791303,17.79197575,3641.8,3641.7,5.88e-06]
[1736168791500,20.82590085,3641.8,3641.7,5.88e-06]
[1736168791714,23.82590085,3641.8,3641.7,5.88e-06]
[1736168793162,24.39461155,3641.8,3641.7,5.88e-06]
[1736168793436,0.0075,3641.7,3639.9,0.7878]
[1736168793735,2.74658,3640.9,3639.9,0.7878]
[1736168793918,8.23848,3640.9,3639.9,0.81527055]
[1736168794120,0.05823182,3640.8,3639.9,0.7878]
[1736168794301,2.74672,3640.7,3639.9,0.7878]
[1736168794735,0.05811278,3640.6,3639.9,0.7878]
[1736168795113,8.29684278,3640.6,3639.9,0.7878]
[1736168796000,5.55001278,3640.6,3639.9,0.7878]
[1736168796610,5.55001278,3640.6,3639.9,3.7878]
[1736168797026,5.55001278,3640.6,3640.3,0.8095]
[1736168799099,5.4919,3640.6,3640.3,0.8095]
[1736168799529,0.0580873,3640.5,3640.3,0.8095]
[1736168800328,0.0580873,3640.5,3640.4,0.55]
[1736168800807,0.0580873,3640.5,3640.3,0.55]
[1736168801028,5.4919,3640.6,3640.3,0.55]
[1736168802327,0.05791424,3640.5,3640.3,0.55]
[1736168802733,0.05791424,3640.5,3640.4,4.04975]
[1736168802953,5.4919,3640.6,3640.5,0.55]
[1736168804546,5.4919,3640.6,3640.5,3.30437]
[1736168804733,5.4919,3640.6,3640.5,4.08207]
[1736168805049,5.4919,3640.6,3640.5,7.08207]
[1736168805250,5.4919,3640.6,3640.5,4.3277]
[1736168807315,5.4919,3640.6,3640.5,3.7777]
[1736168807733,5.55024527,3640.6,3640.5,3.7777]
[1736168809139,5.55024527,3640.6,3640.5,3.0]
[1736168809341,5.55024527,3640.6,3640.3,0.7843]
[1736168810440,5.4919,3640.6,3640.3,0.7843]
[1736168810767,0.05830164,3640.5,3640.3,0.7843]
[1736168810933,0.05830164,3640.5,3640.4,0.55]
[1736168811134,5.4919,3640.6,3640.5,0.0075]
[1736168811455,5.4919,3640.6,3640.5,4.08897]
[1736168811655,5.4919,3640.6,3640.5,7.08897]
[1736168812031,5.4919,3640.6,3640.5,3.0]
[1736168812534,5.55021883,3640.6,3640.5,3.0]
[1736168815955,5.55021883,3640.6,3640.5,38.0]
[1736168816136,5.4919,3640.6,3640.5,38.0]
[1736168822383,5.4919,3640.6,3640.5,42.13237]
[1736168822588,5.4919,3640.6,3640.5,42.13987]
[1736168824994,5.4919,3640.6,3640.5,42.1496552]
[1736168825982,5.4919,3640.6,3640.5,42.69620872]
[1736168826605,5.6e-07,3640.6,3640.5,54.46241014]
[1736168826778,1.96328065,3642.7,3641.8,2.74589]
[1736168827131,0.69308109,3642.6,3641.8,2.7556752]
[1736168827329,0.69308109,3642.6,3641.8,0.0097852]
[1736168827482,0.8321,3642.5,3641.9,35.0]
[1736168827798,0.05146731,3642.4,3641.9,35.0]
[1736168827964,0.05146731,3642.4,3641.9,35.0097852]
[1736168833516,0.05146731,3642.4,3641.9,0.0097852]
[1736168833917,0.05146731,3642.4,3642.0,35.0]
[1736168834100,0.05146731,3642.4,3642.0,35.0097852]
[1736168835039,0.42624704,3642.4,3642.0,35.0097852]
[1736168835209,0.799,3642.3,3642.0,35.0097852]
[1736168836535,0.05119056,3642.2,3642.0,35.0097852]
[1736168836951,0.799,3642.3,3642.0,35.0097852]
[1736168837616,0.799,3642.7,3642.1,0.02745571]
[1736168837815,0.05158787,3642.6,3642.1,2.74562]
[1736168838018,0.799,3642.7,3642.2,2.74557]
[1736168838219,1.13998065,3643.0,3642.3,2.77295243]
[1736168838443,1.13998065,3643.0,3642.4,0.79]
[1736168838444,0.05171863,3642.9,3642.4,0.79]
[1736168838812,0.05171863,3642.9,3642.7,2.7452]
[1736168839039,1.92218065,3643.5,3642.7,2.77264868]
[1736168839346,2.78798744,3643.5,3642.7,2.77264868]
[1736168839714,1.92218065,3643.5,3642.8,37.74511]
[1736168839952,1.92218065,3643.5,3642.9,3.53795]
[1736168840633,1.71059881,3643.7,3643.2,2.74482]
[1736168840837,0.05245283,3643.6,3643.2,2.74478]
[1736168841008,1.93128065,3644.0,3643.3,35.0]
[1736168841207,0.05259952,3643.9,3643.3,35.0]
[1736168841476,1.13998065,3644.0,3643.5,0.8089]
[1736168841627,1.13998065,3644.0,3643.6,0.02744258]
[1736168841944,0.05259957,3643.9,3643.5,0.8089]
[1736168842151,1.11615752,3643.9,3643.3,35.0]
[1736168843035,1.06355795,3643.9,3643.3,35.0]
[1736168843232,0.7785,3643.9,3643.3,35.0]
[1736168843433,0.7785,3643.9,3642.8,0.8076]
[1736168843434,2.74454,3643.6,3642.8,0.8076]
[1736168843748,0.81644121,3643.5,3642.4,3.55301]
[1736168844042,3.56105121,3643.5,3642.5,35.0]
[1736168844247,2.7447,3643.4,3642.5,35.0]
[1736168844547,0.35280808,3643.3,3642.5,35.0]
[1736168844843,3.09756808,3643.3,3642.5,35.0]
[1736168845071,2.74485,3643.2,3642.5,35.0]
[1736168845277,0.7832,3643.4,3642.5,35.0]
[1736168845573,0.7832,3643.4,3642.0,0.0097852]
[1736168845574,0.7832,3642.6,3642.0,0.0097852]
[1736168845941,0.05237514,3642.5,3642.1,35.0]
[1736168846283,0.7832,3642.6,3642.1,35.0]
[1736168846659,2.74508,3642.9,3642.1,35.0]
[1736168846660,0.119,3642.9,3642.1,35.0]
[1736168846853,0.05237377,3642.8,3642.1,35.0]
[1736168847253,0.119,3642.9,3642.1,35.0]
[1736168847577,0.05202633,3642.8,3642.1,35.0]
[1736168849386,0.7853,3642.7,3642.1,35.0]
[1736168849542,2.74538,3642.5,3642.1,35.0]
[1736168849880,0.05195774,3642.4,3642.1,35.0]
[1736168850545,0.41022151,3642.4,3642.1,35.0]
[1736168851445,0.05195774,3642.4,3642.1,35.0]
[1736168851640,3.53052,3642.7,3642.1,35.0]
[1736168851884,0.05204492,3642.6,3642.1,35.0]
[1736168852661,0.05204492,3642.6,3642.0,0.0097852]
[1736168853072,3.53006,3642.1,3642.0,0.0097852]
[1736168853276,4.42223514,3642.1,3642.0,0.0097852]
[1736168853589,4.47396389,3642.1,3642.0,0.0097852]
[1736168855077,3.58178875,3642.1,3642.0,0.0097852]
[1736168856597,0.83612875,3642.1,3642.0,0.0097852]
[1736168857782,0.83612875,3642.1,3642.0,35.0097852]
[1736168858454,0.7844,3642.1,3642.0,35.0097852]
[1736168860695,0.7844,3642.1,3642.0,0.0097852]
[1736168860895,1.149402,3642.1,3642.0,0.0097852]
[1736168861104,1.20043565,3642.1,3642.0,35.0097852]
[1736168861388,1.149402,3642.1,3642.0,35.0097852]
[1736168861898,3.53006,3642.1,3642.0,35.0097852]
[1736168862268,3.58109365,3642.1,3642.0,35.0097852]
[1736168862658,3.58109365,3642.1,3642.0,0.0097852]
[1736168864408,0.83543365,3642.1,3642.0,0.0097852]
[1736168864615,2.86553,3642.3,3642.0,0.0097852]
[1736168864822,0.41665199,3642.2,3642.0,0.0097852]
[1736168865180,0.365673,3642.2,3642.0,0.0097852]
[1736168865380,0.05093539,3642.1,3642.0,0.0097852]
[1736168865575,2.79659539,3642.1,3642.0,0.0097852]
[1736168865789,3.58779539,3642.1,3642.0,0.0097852]
[1736168865989,4.53431137,3642.1,3642.0,0.0097852]
[1736168869217,0.05093539,3642.1,3642.0,0.0097852]
[1736168869879,2.79659539,3642.1,3642.0,0.0097852]
[1736168870611,0.05093539,3642.1,3642.0,35.0097852]
[1736168870993,2.86553,3642.3,3642.0,35.0097852]
[1736168871403,0.05084672,3642.2,3642.0,0.0097852]
[1736168871602,2.86553,3642.3,3642.0,0.0097852]
[1736168871803,0.05084672,3642.2,3642.1,35.0]
[1736168871999,2.74559,3642.2,3642.1,35.0]
[1736168872229,2.79647451,3642.2,3642.1,35.0]
[1736168872545,2.79647451,3642.2,3642.0,0.0097852]
[1736168873104,0.05088451,3642.2,3642.0,0.0097852]